bitfinex/quotes_SOLUSD_20240917
["timestamp","ask_amount","ask_price","bid_price","bid_amount"]
[1726534622717,23.776884,131.24,131.17,20.0]
[1726534623346,23.776884,131.24,131.16,21.7474]
[1726534623637,23.776884,131.24,131.13,21.1863]
[1726534623836,7.6212,131.22,131.14,30.0]
[1726534624042,23.776884,131.21,131.13,21.1863]
[1726534624390,23.776884,131.21,131.1,21.1863]
[1726534624391,37.709284,131.21,131.1,21.1863]
[1726534624714,37.709284,131.21,131.12,30.0]
[1726534625430,30.087884,131.21,131.12,30.0]
[1726534628237,37.709284,131.21,131.12,30.0]
[1726534628437,23.776884,131.19,131.12,30.0]
[1726534630147,15.9705,131.2,131.12,30.0]
[1726534631432,15.9705,131.2,131.13,43.3005577]
[1726534631627,15.9705,131.2,131.15,30.0]
[1726534631832,15.5454,131.23,131.15,30.0]
[1726534632831,15.5454,131.23,131.15,53.3005577]
[1726534634148,15.5454,131.23,131.15,30.0]
[1726534636652,23.776884,131.22,131.15,30.0]
[1726534637146,15.5454,131.23,131.15,30.0]
[1726534637525,23.776884,131.22,131.15,30.0]
[1726534637852,31.397584,131.22,131.15,30.0]
[1726534638031,7.6214,131.21,131.15,30.0]
[1726534638353,23.776884,131.2,131.15,30.0]
[1726534639149,23.776884,131.2,131.11,20.0]
[1726534639441,31.398884,131.2,131.12,30.0]
[1726534639851,15.102,131.19,131.12,30.0]
[1726534640826,23.776884,131.17,131.12,30.0]
[1726534641092,23.776884,131.17,131.09,0.2989175]
[1726534641093,15.102,131.14,131.09,0.2989175]
[1726534641249,23.776884,131.13,131.09,0.2989175]
[1726534642137,29.929184,131.13,131.09,0.2989175]
[1726534646355,6.1523,131.13,131.09,0.2989175]
[1726534646649,15.102,131.14,131.09,0.2989175]
[1726534648452,15.102,131.14,131.09,30.2989175]
[1726534648955,15.102,131.14,131.09,30.2457618]
[1726534656548,15.102,131.14,131.09,0.2457618]
[1726534656854,22.7274,131.14,131.09,0.2457618]
[1726534657062,15.102,131.14,131.09,0.2457618]
[1726534657563,15.102,131.14,131.09,30.2457618]
[1726534659236,22.1768,131.17,131.09,30.2457618]
[1726534665569,15.8635,131.17,131.1,1.52507258]
[1726534665768,6.2621,131.2,131.11,54.48318729]
[1726534667166,13.8841,131.2,131.11,54.48318729]
[1726534667376,31.399584,131.19,131.11,30.0]
[1726534667581,31.399484,131.19,131.11,30.0]
[1726534668479,23.776884,131.19,131.11,30.0]
[1726534668787,23.776884,131.19,131.09,31.35954909]
[1726534669088,23.776884,131.19,131.1,30.0]
[1726534669482,6.2621,131.2,131.1,30.0]
[1726534669483,23.776884,131.17,131.1,30.0]
[1726534669793,15.9775,131.18,131.09,0.2457618]
[1726534669794,23.776884,131.15,131.09,0.2457618]
[1726534670084,31.401984,131.15,131.09,0.2457618]
[1726534670688,37.914884,131.15,131.09,0.2457618]
[1726534671770,7.6256,131.14,131.09,0.2457618]
[1726534671981,23.776884,131.13,131.09,0.2457618]
[1726534672596,23.776884,131.14,131.09,0.2457618]
[1726534675868,31.402284,131.14,131.09,0.2457618]
[1726534676383,23.776884,131.12,131.09,0.2457618]
[1726534676893,31.403484,131.12,131.09,0.2457618]
[1726534677079,7.6272,131.11,131.09,0.2457618]
[1726534677492,23.776884,131.1,131.09,0.2457618]
[1726534680472,15.8315,131.13,131.09,0.2457618]
[1726534680670,23.776884,131.12,131.09,0.2457618]
[1726534681278,15.8315,131.13,131.09,0.2457618]
[1726534681471,23.776884,131.12,131.09,0.2457618]
[1726534681678,15.8315,131.13,131.09,0.2457618]
[1726534682096,16.3256,131.16,131.09,0.2457618]
[1726534682297,23.9498,131.16,131.09,0.2457618]
[1726534683383,16.3256,131.16,131.09,0.2457618]
[1726534684485,23.9499,131.16,131.09,0.2457618]
[1726534684879,23.776884,131.15,131.09,0.2457618]
[1726534686471,31.401684,131.15,131.09,0.2457618]
[1726534687081,16.3256,131.16,131.09,0.2457618]
[1726534688490,16.3256,131.16,131.09,30.2457618]
[1726534690390,23.95,131.16,131.09,0.2457618]
[1726534690587,23.776884,131.15,131.09,0.2457618]
[1726534690911,31.401784,131.15,131.09,0.2457618]
[1726534691674,7.6256,131.14,131.09,0.2457618]
[1726534691881,23.776884,131.13,131.09,0.2457618]
[1726534692184,31.401884,131.15,131.09,0.2457618]
[1726534692589,6.80114696,131.19,131.1,16.4562]
[1726534692846,15.3563,131.2,131.1,16.4562]
[1726534693704,15.3563,131.2,131.11,24.48318729]
[1726534694005,19.0521,131.22,131.1,46.4562]
[1726534694308,22.15744696,131.23,131.1,46.4562]
[1726534694309,7.6214,131.21,131.1,46.4562]
[1726534694481,7.6208,131.22,131.11,30.75248729]
[1726534695612,15.3563,131.23,131.11,30.75248729]
[1726534695613,15.3563,131.23,131.15,24.48318729]
[1726534695787,7.6203,131.23,131.16,16.4363]
[1726534696110,7.6202,131.23,131.16,16.4363]
[1726534696409,17.66766287,131.25,131.16,16.4363]
[1726534696602,0.308616,131.25,131.17,6.5333]
[1726534697823,0.308616,131.25,131.18,1.52411304]
[1726534697990,0.308616,131.25,131.17,61.01648729]
[1726534698198,0.308616,131.25,131.17,36.5333]
[1726534698909,0.308616,131.25,131.17,61.01648729]
[1726534700915,0.308616,131.25,131.17,36.5333]
[1726534701819,23.776884,131.24,131.17,36.5333]
[1726534701997,0.308616,131.25,131.17,6.5333]
[1726534704917,0.308616,131.25,131.18,30.0]
[1726534706218,20.0,131.23,131.18,30.0]
[1726534706453,23.776884,131.2,131.14,6.2242]
[1726534706910,23.776884,131.18,131.14,6.2242]
[1726534707101,23.776884,131.18,131.13,15.7132]
[1726534707305,23.776884,131.18,131.11,6.2242]
[1726534707306,31.400084,131.18,131.11,6.2242]
[1726534707702,7.6237,131.17,131.11,6.2242]
[1726534707900,23.776884,131.16,131.11,6.2242]
[1726534708722,23.776884,131.16,131.1,15.5529618]
[1726534709634,23.776884,131.16,131.1,15.3072]
[1726534711904,43.776884,131.17,131.1,15.3072]
[1726534712803,51.400584,131.17,131.1,15.3072]
[1726534713038,51.400584,131.17,131.09,0.267432]
[1726534713039,20.0,131.14,131.09,0.267432]
[1726534713323,23.776884,131.13,131.09,0.267432]
[1726534714435,23.776884,131.11,131.09,0.267432]
[1726534720421,20.0,131.12,131.09,0.267432]
[1726534720746,20.0,131.14,131.09,0.267432]
[1726534720924,23.776884,131.13,131.09,0.267432]
[1726534721352,7.6254,131.14,131.09,0.267432]
[1726534721543,43.776884,131.13,131.09,0.267432]
[1726534724041,51.402884,131.13,131.09,0.267432]
[1726534730061,43.776884,131.13,131.09,0.267432]
[1726534730372,20.0,131.14,131.09,0.267432]
[1726534730542,7.6257,131.14,131.09,0.267432]
[1726534731050,20.0,131.13,131.09,0.267432]
[1726534733139,23.776884,131.12,131.09,0.267432]
[1726534733365,23.776884,131.14,131.09,0.267432]
[1726534733568,20.0,131.13,131.09,0.267432]
[1726534733761,23.776884,131.12,131.09,0.267432]
[1726534742089,20.0,131.13,131.09,0.267432]
[1726534742292,7.6255,131.14,131.09,0.267432]
[1726534742466,20.0,131.14,131.09,0.267432]
[1726534742671,7.6248,131.15,131.09,0.267432]
[1726534742921,24.0885,131.17,131.09,0.267432]
[1726534743090,7.6242,131.17,131.09,0.267432]
[1726534743265,7.6242,131.17,131.1,6.0579]
[1726534743764,7.6231,131.18,131.1,6.0579]
[1726534744174,20.0,131.17,131.1,6.0579]
[1726534744384,27.6225,131.19,131.1,6.0579]
[1726534744584,7.6224,131.2,131.11,16.3435]
[1726534745666,7.6225,131.19,131.11,16.3435]
[1726534745870,20.0,131.18,131.11,16.3435]
[1726534746469,20.0,131.2,131.11,16.3435]
[1726534747090,7.622,131.2,131.11,16.3435]
[1726534747287,20.0,131.19,131.11,16.3435]
[1726534749079,20.0,131.19,131.11,46.3435]
[1726534753605,23.776884,131.18,131.11,46.3435]
[1726534753896,7.6247,131.16,131.11,46.3435]
[1726534754085,23.776884,131.15,131.11,46.3435]
[1726534754589,23.776884,131.15,131.11,16.3435]
[1726534756378,31.401784,131.15,131.1,6.0579]
[1726534758873,31.401784,131.15,131.09,0.267432]
[1726534759088,27.6255,131.14,131.09,0.267432]
[1726534759475,23.776884,131.13,131.09,0.267432]
[1726534759736,7.6277,131.1,131.09,0.267432]
[1726534759977,51.404584,131.1,131.09,0.267432]
[1726534760887,43.776884,131.1,131.09,0.267432]
[1726534761285,51.404584,131.1,131.09,0.267432]
[1726534767498,51.404584,131.1,131.05,0.2582949]
[1726534767499,7.6295,131.07,131.05,0.2582949]
[1726534767802,23.776884,131.06,131.05,0.2582949]
[1726534770498,20.0,131.07,131.05,0.2582949]
[1726534771087,27.6296,131.07,131.05,0.2582949]
[1726534772809,20.0,131.09,131.05,0.2582949]
[1726534773510,27.6284,131.09,131.05,0.2582949]
[1726534784329,23.776884,131.1,131.01,14.52119958]
[1726534784330,43.776884,131.05,131.01,0.2582949]
[1726534784506,23.776884,131.03,131.01,0.2582949]
[1726534784686,7.6313,131.04,131.01,0.2582949]
[1726534785592,43.776884,131.05,131.01,0.2582949]
[1726534786900,52.90863512,131.05,131.01,0.2582949]
[1726534787409,43.776884,131.05,131.01,0.2582949]
[1726534788218,16.2625,131.08,131.01,0.2582949]
[1726534788403,28.3885097,131.11,131.01,0.2582949]
[1726534788716,28.3885097,131.11,131.02,6.1014]
[1726534788717,7.6283,131.1,131.02,6.1014]
[1726534790021,20.0,131.09,131.02,6.1014]
[1726534791092,23.776884,131.08,131.02,6.1014]
[1726534791505,23.776884,131.08,131.03,16.6551]
[1726534795617,31.406184,131.08,131.03,16.6551]
[1726534796218,23.776884,131.06,131.02,6.1014]
[1726534796523,23.776884,131.04,131.01,0.2582949]
[1726534797701,7.6302,131.06,131.01,0.2582949]
[1726534797902,23.776884,131.05,131.01,0.2582949]
[1726534798913,31.407684,131.05,131.01,0.2582949]
[1726534799309,7.6312,131.04,131.01,0.2582949]
[1726534799508,23.776884,131.03,131.01,0.2582949]
[1726534800316,20.0,131.07,131.01,0.2582949]
[1726534801319,27.6297,131.07,131.01,0.2582949]
[1726534801527,22.9,131.1,131.01,0.2582949]
[1726534801528,7.6301,131.06,131.01,0.2582949]
[1726534801701,7.6308,131.05,131.01,0.2582949]
[1726534801914,23.776884,131.05,131.01,0.2582949]
[1726534802634,23.776884,131.04,131.01,0.2582949]
[1726534803042,31.408184,131.04,131.01,0.2582949]
[1726534803223,23.776884,131.04,131.01,0.2582949]
[1726534803420,31.408084,131.04,131.01,0.2582949]
[1726534804131,23.776884,131.05,131.01,0.2582949]
[1726534804341,20.0,131.04,131.01,0.2582949]
[1726534804541,23.776884,131.03,131.01,0.2582949]
[1726534804840,7.6313,131.04,131.01,0.2582949]
[1726534805029,23.776884,131.03,131.01,0.2582949]
[1726534805435,46.676884,131.06,131.01,0.2582949]
[1726534805754,31.409184,131.03,131.01,0.2582949]
[1726534806747,31.408184,131.04,131.01,0.2582949]
[1726534807023,23.776884,131.04,131.01,0.2582949]
[1726534807230,20.0,131.05,131.01,0.2582949]
[1726534807428,23.776884,131.04,131.01,0.2582949]
[1726534808239,31.408084,131.04,131.01,0.2582949]
[1726534808645,23.776884,131.04,131.01,0.2582949]
[1726534809140,31.408084,131.04,131.01,0.2582949]
[1726534810242,23.776884,131.04,131.01,0.2582949]
[1726534810943,31.408284,131.04,131.01,0.2582949]
[1726534813156,23.776884,131.02,131.01,0.2582949]
[1726534816330,7.6313,131.04,131.01,0.2582949]
[1726534816650,7.6308,131.05,131.01,0.2582949]
[1726534817853,23.776884,131.03,131.01,0.2582949]
[1726534821664,31.55800018,131.08,131.01,0.2582949]
[1726534821833,20.0,131.07,131.01,0.2582949]
[1726534822036,8.65800018,131.08,131.01,0.2582949]
[1726534822241,7.6278,131.1,131.02,16.4834]
[1726534822849,7.6273,131.11,131.02,30.7579064]
[1726534823173,15.1042,131.12,131.03,14.2745064]
[1726534823378,15.1042,131.12,131.02,16.4834]
[1726534823379,18.34596525,131.13,131.05,14.2745064]
[1726534823658,10.71986525,131.13,131.05,14.2745064]
[1726534824244,10.71986525,131.13,131.04,14.2745064]
[1726534824445,23.776884,131.1,131.02,30.7579064]
[1726534825063,23.776884,131.11,131.03,14.2745064]
[1726534825244,10.71986525,131.13,131.04,14.2745064]
[1726534826037,18.34596525,131.13,131.05,6.2662]
[1726534826449,7.6254,131.14,131.05,20.5407064]
[1726534826978,15.4790949,131.15,131.06,14.2745064]
[1726534827267,0.2582949,131.15,131.08,14.2745064]
[1726534827465,0.2582949,131.15,131.09,14.2745064]
[1726534827668,0.2582949,131.15,131.1,20.5407064]
[1726534828786,0.2582949,131.15,131.11,15.5562]
[1726534829773,0.2582949,131.15,131.11,29.8307064]
[1726534829978,0.2582949,131.15,131.14,14.2745064]
[1726534830141,0.2582949,131.15,131.14,20.5407064]
[1726534830571,0.2582949,131.19,131.15,15.5562]
[1726534830866,0.2582949,131.19,131.17,14.2745064]
[1726534831256,0.2582949,131.19,131.18,14.2745064]
[1726534831455,0.2582949,131.19,131.18,20.5407064]
[1726534831985,0.2582949,131.19,131.18,6.2662]
[1726534834767,0.2582949,131.19,131.18,36.2662]
[1726534837997,0.2582949,131.19,131.18,30.0]
[1726534838573,23.7934738,131.23,131.15,21.5712]
[1726534838778,23.776884,131.2,131.15,21.5712]
[1726534838981,23.7934738,131.23,131.15,21.5712]
[1726534839586,31.4136738,131.23,131.15,21.5712]
[1726534840175,23.7934738,131.23,131.15,21.5712]
[1726534840575,0.0165898,131.23,131.15,21.5712]
[1726534842104,0.0165898,131.23,131.16,30.0]
[1726534843185,0.0165898,131.23,131.16,52.22701909]
[1726534843698,0.0165898,131.23,131.16,30.0]
[1726534845915,0.0165898,131.23,131.15,21.5712]
[1726534847499,20.0165898,131.23,131.15,21.5712]
[1726534847693,23.776884,131.21,131.15,21.5712]
[1726534848415,23.776884,131.22,131.15,21.5712]
[1726534852908,0.0165898,131.23,131.16,30.0]
[1726534853493,23.7934738,131.23,131.16,30.0]
[1726534853813,0.0165898,131.23,131.16,30.0]
[1726534853995,0.0165898,131.23,131.17,14.22770589]
[1726534854190,0.0165898,131.23,131.18,14.22770589]
[1726534854390,0.0165898,131.23,131.18,44.22770589]
[1726534854694,0.0165898,131.23,131.19,14.22770589]
[1726534855890,0.0165898,131.23,131.18,30.0]
[1726534858212,0.0165898,131.23,131.19,1.52408876]
[1726534858407,0.0165898,131.23,131.18,30.0]
[1726534858822,0.0165898,131.23,131.19,1.5240894]
[1726534859018,0.0165898,131.23,131.17,20.0]
[1726534860524,0.0165898,131.23,131.18,30.0]
[1726534861127,7.6369898,131.23,131.15,21.5712]
[1726534861416,23.776884,131.22,131.15,21.5712]
[1726534862028,0.0165898,131.23,131.16,52.22708891]
[1726534863039,0.0165898,131.23,131.17,20.0]
[1726534863211,0.0165898,131.23,131.18,30.0]
[1726534863738,0.0165898,131.23,131.18,52.22708891]
[1726534865244,0.0165898,131.23,131.19,1.52402263]
[1726534865416,0.0165898,131.23,131.19,30.0]
[1726534866133,0.0165898,131.23,131.2,46.70932531]
[1726534866439,0.0165898,131.23,131.2,45.18568891]
[1726534867637,0.0165898,131.23,131.2,75.18568891]
[1726534869139,0.0165898,131.23,131.22,42.22708891]
[1726534869324,0.2582949,131.27,131.23,43.776884]
[1726534869535,0.2582949,131.27,131.24,44.87608891]
[1726534870472,0.2582949,131.27,131.24,74.87608891]
[1726534871318,0.2582949,131.27,131.25,1.52319263]
[1726534871546,0.2582949,131.27,131.26,43.75020856]
[1726534871728,0.2582949,131.27,131.26,42.22708891]
[1726534872435,0.2582949,131.27,131.26,72.22708891]
[1726534874633,0.2582949,131.27,131.26,50.0]
[1726534875839,0.2582949,131.27,131.26,30.0]
[1726534880740,0.2582949,131.27,131.26,53.75034401]
[1726534880940,0.2582949,131.27,131.26,52.22708891]
[1726534881225,0.2582949,131.27,131.26,53.75017075]
[1726534881850,0.2582949,131.27,131.26,73.7500721]
[1726534882037,0.2582949,131.27,131.26,72.22708891]
[1726534882871,0.2582949,131.27,131.26,96.00397291]
[1726534883662,0.2582949,131.27,131.26,72.22708891]
[1726534885558,0.2582949,131.27,131.26,50.0]
[1726534885771,0.2582949,131.27,131.26,30.0]
[1726534889465,0.2582949,131.27,131.2,45.13948891]
[1726534889644,0.2582949,131.27,131.21,30.0]
[1726534891858,24.0351789,131.27,131.21,30.0]
[1726534896084,23.776884,131.25,131.21,30.0]
[1726534896689,31.395984,131.25,131.21,30.0]
[1726534896858,31.395984,131.25,131.14,37.25508891]
[1726534897061,31.395984,131.25,131.15,30.0]
[1726534897788,23.776884,131.23,131.15,30.0]
[1726534898081,31.398284,131.21,131.15,30.0]
[1726534898258,23.776884,131.21,131.15,30.0]
[1726534900183,23.776884,131.21,131.13,0.2582949]
[1726534900389,23.776884,131.21,131.13,30.2582949]
[1726534901267,31.398284,131.21,131.13,30.2582949]
[1726534901461,23.776884,131.19,131.13,30.2582949]
[1726534905691,23.776884,131.2,131.13,30.2582949]
[1726534906069,23.776884,131.2,131.13,0.2582949]
[1726534909197,23.776884,131.2,131.13,30.2582949]
[1726534911226,23.776884,131.21,131.13,30.2582949]
[1726534912072,22.8634,131.22,131.13,30.2582949]
[1726534912276,15.2425,131.22,131.13,30.2582949]
[1726534912579,15.2425,131.22,131.14,22.22708891]
[1726534912776,15.2425,131.22,131.15,1.52445555]
[1726534913186,15.2425,131.22,131.14,22.22708891]
[1726534913768,23.776884,131.21,131.15,30.0]
[1726534914195,15.2425,131.22,131.15,30.0]
[1726534916500,23.776884,131.23,131.15,30.0]
[1726534917200,23.776884,131.23,131.15,45.2949]
[1726534921696,31.397084,131.23,131.15,45.2949]
[1726534922088,23.776884,131.23,131.15,45.2949]
[1726534925605,23.776884,131.23,131.16,1.52436485]
[1726534925838,23.776884,131.23,131.17,30.0]
[1726534926111,6.0843,131.24,131.17,30.0]
[1726534926603,6.0843,131.24,131.15,21.526]
[1726534927130,15.3022,131.25,131.15,43.75308891]
[1726534927397,0.2582949,131.27,131.19,22.22708891]
[1726534927603,0.2582949,131.27,131.2,15.4309]
[1726534929392,24.0351789,131.27,131.2,15.4309]
[1726534929708,24.0351789,131.27,131.2,45.4309]
[1726534930289,31.6531789,131.27,131.2,45.4309]
[1726534930511,31.6531789,131.27,131.2,15.4309]
[1726534930988,24.0351789,131.27,131.2,15.4309]
[1726534932597,7.6184,131.26,131.2,15.4309]
[1726534932810,31.6533789,131.27,131.2,15.4309]
[1726534933707,31.6533789,131.27,131.18,20.0]
[1726534933908,24.0351789,131.27,131.17,15.4728]
[1726534934108,23.776884,131.25,131.17,15.4728]
[1726534934894,23.776884,131.25,131.18,30.0]
[1726534935295,20.0,131.26,131.18,30.0]
[1726534935490,23.776884,131.25,131.18,30.0]
[1726534935893,23.776884,131.26,131.18,30.0]
[1726534937987,7.6186,131.26,131.18,30.0]
[1726534938196,46.9851789,131.27,131.18,30.0]
[1726534938413,23.776884,131.25,131.18,30.0]
[1726534938598,7.6196,131.24,131.18,30.0]
[1726534938806,23.776884,131.25,131.18,30.0]
[1726534939102,23.776884,131.25,131.17,15.4728]
[1726534943124,0.2582949,131.27,131.18,20.0]
[1726534943414,0.2582949,131.27,131.19,63.83682765]
[1726534943649,0.2582949,131.27,131.2,20.0]
[1726534943798,0.2582949,131.27,131.21,15.1095]
[1726534943999,0.2582949,131.27,131.22,14.21668417]
[1726534944606,0.2582949,131.27,131.23,14.21668417]
[1726534944810,0.2582949,131.27,131.24,15.74026154]
[1726534945022,0.2582949,131.27,131.24,14.21668417]
[1726534945227,0.2582949,131.27,131.26,14.21668417]
[1726534945739,0.2582949,131.27,131.26,30.59908417]
[1726534945897,0.2582949,131.27,131.26,16.3824]
[1726534946298,0.2582949,131.27,131.26,46.3824]
[1726534946707,0.2582949,131.27,131.26,16.3824]
[1726534949229,0.2582949,131.27,131.26,17.90534848]
[1726534949429,9.49e-05,131.27,131.26,82.3586544]
[1726534949719,0.2582949,131.31,131.27,20.0]
[1726534950801,0.2582949,131.31,131.27,50.0]
[1726534951219,0.2582949,131.31,131.28,22.1993704]
[1726534951526,0.2582949,131.31,131.29,6.4683]
[1726534951724,0.2582949,131.31,131.29,36.4683]
[1726534955626,0.2582949,131.31,131.29,30.0]
[1726534957013,23.776884,131.3,131.23,21.9737]
[1726534957330,31.392984,131.3,131.25,30.0]
[1726534958114,24.0351789,131.31,131.25,30.0]
[1726534958308,0.2582949,131.31,131.25,30.0]
[1726534961732,0.2582949,131.31,131.21,20.0]
[1726534961733,23.776884,131.29,131.21,20.0]
[1726534961937,23.776884,131.29,131.22,30.0]
[1726534964009,7.8738949,131.31,131.22,30.0]
[1726534964217,23.776884,131.3,131.22,30.0]
[1726534964935,23.776884,131.28,131.22,30.0]
[1726534965113,16.17,131.27,131.22,30.0]
[1726534965918,16.17,131.27,131.21,30.0]
[1726534966614,16.17,131.27,131.2,15.6787]
[1726534967670,36.17,131.3,131.2,15.6787]
[1726534968670,43.7861,131.3,131.2,15.6787]
[1726534968897,23.776884,131.29,131.2,15.6787]
[1726534969770,23.776884,131.29,131.21,30.0]
[1726534971969,31.393584,131.29,131.21,30.0]
[1726534972683,23.776884,131.27,131.21,30.0]
[1726534973681,31.394784,131.27,131.21,30.0]
[1726534974390,23.776884,131.25,131.18,6.3816]
[1726534974588,23.776884,131.25,131.19,30.0]
[1726534975503,23.776884,131.26,131.19,30.0]
[1726534976392,20.0,131.28,131.19,30.0]
[1726534976789,27.6174,131.28,131.19,30.0]
[1726534977877,23.776884,131.28,131.19,52.1993704]
[1726534978576,23.7863,131.3,131.21,15.0918]
[1726534980097,23.776884,131.29,131.21,15.0918]
[1726534982074,16.17,131.3,131.21,15.0918]
[1726534982399,8.921886,131.29,131.23,6.3966]
[1726534982894,8.921886,131.29,131.24,20.0]
[1726534983280,8.921886,131.29,131.25,16.4897]
[1726534983486,8.921886,131.29,131.25,38.6890704]
[1726534983983,8.921886,131.29,131.27,22.1993704]
[1726534984183,8.921886,131.29,131.28,6.5345]
[1726534985197,8.921886,131.29,131.28,36.5345]
[1726534985901,8.921886,131.29,131.28,56.5345]
[1726534989506,8.921886,131.29,131.28,78.7338704]
[1726534994610,8.921886,131.29,131.28,104.03355967]
[1726534995036,8.921886,131.29,131.28,78.7338704]
[1726534995785,8.921886,131.29,131.28,56.5345]
[1726535000708,8.921886,131.29,131.28,104.03366466]
[1726535000905,0.2582949,131.31,131.29,20.0]
[1726535001204,0.2582949,131.31,131.3,23.7219785]
[1726535001396,0.2582949,131.31,131.3,43.7219785]
[1726535002112,0.2582949,131.31,131.3,73.7219785]
[1726535004111,0.2582949,131.31,131.3,72.1993704]
[1726535005612,0.2582949,131.31,131.3,30.0]
[1726535009685,0.2582949,131.31,131.27,30.0]
[1726535009887,0.2582949,131.31,131.28,20.0]
[1726535010106,0.2582949,131.31,131.29,1.52235396]
[1726535010303,0.2582949,131.31,131.28,20.0]
[1726535010813,0.2582949,131.31,131.3,30.0]
[1726535021915,0.2582949,131.31,131.3,44.19906349]
[1726535026935,0.2582949,131.31,131.3,14.19906349]
[1726535028341,0.2582949,131.31,131.3,44.19906349]
[1726535029330,0.2582949,131.31,131.3,48.02508439]
[1726535029648,0.2582949,131.31,131.3,44.19906349]
[1726535031344,0.2582949,131.31,131.3,48.02521448]
[1726535031721,0.2582949,131.31,131.3,48.02518846]
[1726535034511,0.2582949,131.31,131.3,44.19906349]
[1726535034757,0.2582949,131.31,131.3,48.02518846]
[1726535042530,0.2582949,131.31,131.3,30.0]
[1726535046957,0.2582949,131.31,131.29,14.19906349]
[1726535047830,0.2582949,131.31,131.25,16.4897]
[1726535048030,0.2582949,131.31,131.27,30.0]
[1726535048660,0.2582949,131.31,131.26,14.19906349]
[1726535049333,0.2582949,131.31,131.25,14.19906349]
[1726535049534,0.2582949,131.31,131.26,30.0]
[1726535049834,0.2582949,131.31,131.27,14.19906349]
[1726535050038,0.2582949,131.31,131.3,14.19906349]
[1726535050239,0.2582949,131.31,131.29,14.19906349]
[1726535051131,0.2582949,131.31,131.3,30.0]
[1726535051638,0.2582949,131.31,131.3,31.52284251]
[1726535052663,0.2582949,131.31,131.3,30.0]
[1726535056054,15.6635,131.33,131.3,30.0]
[1726535056055,15.4217949,131.33,131.3,30.0]
[1726535056261,15.4217949,131.33,131.26,14.19906349]
[1726535056447,23.0361949,131.33,131.24,44.19906349]
[1726535056637,23.0361949,131.33,131.25,14.19906349]
[1726535057348,15.4217949,131.33,131.26,30.0]
[1726535057661,15.4217949,131.33,131.26,44.19906349]
[1726535057864,23.0362949,131.33,131.26,30.0]
[1726535058879,15.4217949,131.33,131.26,30.0]
[1726535062240,15.4217949,131.33,131.27,14.19906349]
[1726535064261,15.4217949,131.33,131.26,44.19906349]
[1726535066649,15.4217949,131.33,131.26,14.19906349]
[1726535069560,23.0365949,131.33,131.26,14.19906349]
[1726535073192,23.776884,131.32,131.25,14.19906349]
[1726535073365,23.776884,131.32,131.22,43.776884]
[1726535073366,23.776884,131.32,131.24,14.19906349]
[1726535074271,23.776884,131.32,131.25,30.0]
[1726535074681,15.4217949,131.33,131.26,14.19906349]
[1726535075369,15.4217949,131.33,131.27,30.0]
[1726535079579,15.4217949,131.33,131.26,14.19906349]
[1726535080781,15.4217949,131.33,131.25,14.19906349]
[1726535081079,15.4217949,131.33,131.26,30.0]
[1726535086787,23.0362949,131.33,131.26,30.0]
[1726535086964,23.776884,131.32,131.24,14.19906349]
[1726535087167,23.776884,131.32,131.25,30.0]
[1726535087365,23.776884,131.32,131.24,14.19906349]
[1726535088881,23.776884,131.32,131.25,14.19906349]
[1726535090497,23.776884,131.32,131.26,30.0]
[1726535094509,15.4217949,131.33,131.26,30.0]
[1726535100483,23.776884,131.32,131.26,30.0]
[1726535101186,23.776884,131.3,131.26,30.0]
[1726535101380,23.776884,131.3,131.21,0.2582949]
[1726535101381,16.2617,131.29,131.21,0.2582949]
[1726535101732,16.2617,131.29,131.21,30.2582949]
[1726535102001,23.8784,131.29,131.21,30.2582949]
[1726535102223,16.2617,131.29,131.21,30.2582949]
[1726535102904,6.599,131.28,131.21,30.2582949]
[1726535103201,6.599,131.28,131.21,0.2582949]
[1726535109916,6.599,131.28,131.24,14.19906349]
[1726535110114,16.2617,131.29,131.27,14.19906349]
[1726535110285,6.1954,131.32,131.28,15.72223741]
[1726535110607,6.1954,131.32,131.22,29.89934191]